Cogmind - Beta 16 @@@ ROGUE MODE // 2026.01.20 @ 21:11:53 Player: AngelSpirit Result: Destroyed by G-73 Enforcer with Phase Gun Performance ------------- Evolutions (9) 4500 Regions Visited (26) 5200 Robots Destroyed (371) 1855 Value Destroyed (18337) 18337 Prototype IDs (100) 2000 Alien Tech Used (5) 1000 Bonus (24709) 24709 TOTAL SCORE: 57601 Bonus ------- High Alert Combat Kills 2310 Follower Combat Kills 2305 Network Hubs Disabled 400 Met Zhirov 300 Met Warlord at Base 500 MAIN.C Attacked Warlord 500 Warlord Defense Kills 86 Built Enhanced Grunts 300 A7 Reached Mainframe 300 Met R17 at Cetus 500 Found Hidden Lab 3000 Used Core Reset Matrix 3000 Met R17 at Research 2000 Met Warlord at Research 2000 Acquired SGEMP 2000 Destroyed MAIN.C Guards 500 Met MAIN.C 5000 Friendly Fire -292 Cogmind --------- Core Integrity 0/1600 Matter 96/300 Energy 100/100 System Corruption 28% Temperature Cool (0) Movement Core (50) Location -1/Command Parts ------- > --- POWER (2) -------- (None) > --- PROPULSION (7) --- (None) > --- UTILITY (12) ----- Spectral Analyzer Experimental Targeting Computer Experimental Target Analyzer Improved Hacking Suite > --- WEAPON (4) ------- (None) > --- INVENTORY (5) ---- Zero-point Reactor Zero-point Reactor Vortex Chain Reactor Peak State ------------ > --- POWER ------------ Mini Fusion Reactor Light Quantum Reactor > --- PROPULSION ------- Improved Antigrav System Antigrav Array Cooled Linear Gravjet Combat Linear Gravjet Combat Linear Gravjet Combat Linear Gravjet > --- UTILITY ---------- 2N-1CE's Frost Array Large Storage Unit Spectral Analyzer Advanced Sensor Array Advanced Signal Interpreter Experimental Targeting Computer Experimental Target Analyzer Experimental Core Analyzer Centrium Medium Armor Plating Experimental Powered Armor Experimental Shield Generator Advanced Dynamic Insulation System > --- WEAPON ----------- Railgun Helical Railgun Helical Railgun Helical Railgun > --- INVENTORY -------- Micro Antimatter Reactor Light Quantum Reactor Vortex Chain Reactor Advanced Thermal Shield Transdimensional Reconstructor Vortex Driver Vortex Driver Warp Cannon Perforator Chain Missile Launcher Zhirov Special [Rating: 216] Favorites ----------- Power Compact Particle Reactor Engine Subdweller Power Source Power Core Cooled Fission Core Reactor Compact Particle Reactor Propulsion Combat Linear Gravjet Treads Heavy Siege Treads Leg Advanced Myomer Leg Wheel Compact Wheel Hover Unit Combat Linear Gravjet Utility Centrium Medium Armor Plating Device Long-range Sensor Array Storage Huge Storage Unit Processor Advanced Signal Interpreter Hackware Improved Hacking Suite Protection Centrium Medium Armor Plating Weapon Hypervelocity Railgun Energy Gun Improved Lightning Gun Energy Cannon Improved Matter Neutralizer Ballistic Gun Hypervelocity Railgun Ballistic Cannon Mini Assault Cannon Launcher Improved Proton Missile Launcher Special Weapon Multitool Impact Weapon Shock Maul Slashing Weapon Centrium Greatsword Piercing Weapon Lance Special Melee Weapon Dirty Datajack Build | -11 -10 -10 -8 -7 -6 -6 -6 -6 -6 -5 -5 -5 -5 -4 -4 -4 -4 -4 -3 -3 -3 -3 -2 -2 -1 -1 ------- Run | Yrd Mat Sub Mat Fac Fac Ext Cet Arc Hub Fac Upp Upp Zhi Pro Fac Upp Upp War Pro Res Arm Lab Res Tes Acc Com Slots Evolved 18 | . . . 4 2 2 . . . . 2 . . . . 2 . . . . 2 . . 2 . 2 . Power 1 | . . . . . . . . . . . . . . . . . . . . . . . 1 . . . Propulsion 5 | . . . 1 1 . . . . . 1 . . . . 1 . . . . . . . . . 1 . Utility 10 | . . . 2 1 2 . . . . 1 . . . . 1 . . . . 2 . . . . 1 . Weapon 2 | . . . 1 . . . . . . . . . . . . . . . . . . . 1 . . . Parts Attached 342 | 7 5 16 17 9 23 7 6 12 3 19 3 9 11 4 65 2 4 18 1 6 3 4 38 16 11 23 Power 35 | 1 1 2 . 3 4 2 2 . . 2 2 1 1 1 . . . 2 . . . . 4 . 3 4 Engine 12 | 1 1 2 . 3 2 1 . . . . 1 . . . . . . . . . . . 1 . . . Core 7 | . . . . . 2 1 . . . 1 . 1 . 1 . . . 1 . . . . . . . . Reactor 16 | . . . . . . . 2 . . 1 1 . 1 . . . . 1 . . . . 3 . 3 4 Propulsion 69 | 2 . 7 4 1 2 3 1 1 . 3 . 1 3 1 18 . 1 7 . . . . 3 2 2 7 Treads 1 | . . . . . . . . . . . . . . . . . . . . . . . . . 1 . Leg 4 | . . . . . . . . . . . . . 3 1 . . . . . . . . . . . . Wheel 25 | 2 . 7 4 1 2 3 1 1 . 3 . 1 . . . . . . . . . . . . . . Hover 39 | . . . . . . . . . . . . . . . 18 . 1 7 . . . . 3 2 1 7 Flight . | . . . . . . . . . . . . . . . . . . . . . . . . . . . Utility 146 | 2 2 4 7 3 11 2 1 7 3 6 . 5 5 1 29 2 2 7 . 1 . 2 21 9 5 9 Device 76 | 1 . . 2 2 4 2 1 5 1 3 . 2 3 . 20 1 1 2 . . . . 13 6 2 5 Storage 8 | 1 2 . . . . . . . . . . . 1 . 3 . . . . . . . . . . 1 Processor 19 | . . . . . 2 . . . . . . 2 . 1 4 . . 3 . . . . 6 1 . . Hackware 13 | . . . 1 . . . . 1 1 1 . . . . 1 1 1 . . . . 1 1 1 2 1 Protection 30 | . . 4 4 1 5 . . 1 1 2 . 1 1 . 1 . . 2 . 1 . 1 1 1 1 2 Artifact . | . . . . . . . . . . . . . . . . . . . . . . . . . . . Weapon 92 | 2 2 3 6 2 6 . 2 4 . 8 1 2 2 1 18 . 1 2 1 5 3 2 10 5 1 3 Energy Gun 13 | . . . 3 . . . 1 1 . 5 1 . . . 1 . . 1 . . . . . . . . Energy Cannon 16 | . 1 3 . . 3 . . . . . . 1 . . 3 . . 1 . . . 2 . . . 2 Ballistic Gun 39 | 2 . . 3 . 2 . . 3 . 1 . . . . 10 . . . . 4 3 . 7 3 1 . Ballistic Cannon 5 | . . . . 1 . . 1 . . . . . . . 2 . . . . . . . . 1 . . Launcher 6 | . 1 . . . 1 . . . . . . 1 . . . . . . 1 . . . . 1 . 1 Special Weapon 4 | . . . . 1 . . . . . 1 . . . . 1 . . . . . . . 1 . . . Impact Weapon 2 | . . . . . . . . . . 1 . . . 1 . . . . . . . . . . . . Slashing Weapon 3 | . . . . . . . . . . . . . . . 1 . . . . . . . 2 . . . Piercing Weapon 3 | . . . . . . . . . . . . . 2 . . . . . . 1 . . . . . . Special Melee Weapon 1 | . . . . . . . . . . . . . . . . . 1 . . . . . . . . . Unidentified Prototypes 76 | . . . 1 1 4 . 4 2 1 4 . 1 6 . 6 . . 6 1 2 2 7 10 13 1 4 Corrupted Parts 3 | . . . . . . . . 2 . . . . . 1 . . . . . . . . . . . . System Corruption 28 | . . . . . . . . 18 . . . . . 10 . . . . . . . . . . . . Parts Lost 88 | . 1 5 4 . 8 1 . 1 3 6 5 5 . 1 6 1 . . . . . . 1 5 2 33 Power 14 | . 1 2 . . 2 . . . . 1 1 1 . . 1 . . . . . . . . 1 . 4 Propulsion 21 | . . 1 3 . 2 . . . . 1 1 . . . 2 . . . . . . . . . . 11 Utility 30 | . . 2 . . 2 1 . . 2 1 . 2 . 1 2 1 . . . . . . . 3 1 12 Weapon 23 | . . . 1 . 2 . . 1 1 3 3 2 . . 1 . . . . . . . 1 1 1 6 Highest Loss Streak 14 | . 1 2 2 . 4 1 . 1 1 2 2 4 . 1 1 1 . . . . . . 1 2 2 14 To Critical Strikes . | . . . . . . . . . . . . . . . . . . . . . . . . . . . Average Backups 16 | . 4 16 18 18 20 20 21 21 20 21 23 22 23 23 14 14 14 14 13 12 12 11 11 10 10 7 Power 1 | . . 1 3 2 1 1 2 3 3 2 2 2 3 3 1 1 1 1 2 2 2 2 2 2 2 3 Propulsion 2 | . . 4 3 . 3 3 2 1 1 3 4 4 4 5 1 2 1 . 1 . 1 1 1 . . . Utility 6 | . 1 3 4 8 11 12 11 11 10 9 7 9 9 9 7 6 7 6 4 2 3 2 1 1 1 . Weapon 4 | . 2 6 6 6 1 2 3 5 4 5 8 5 4 4 3 4 4 4 5 6 5 5 4 5 5 3 Tool/Special . | . . . . . . . . . . . . . . . . . . . . . . . . . . . Unused Backups 59 | . . 7 . 1 15 2 6 2 . 4 1 . 4 1 4 . . 5 . 3 . 1 1 1 . 1 Power 7 | . . 2 . . . 2 2 . . . . . . . . . . . . . . . . . . 1 Propulsion 9 | . . . . . 5 . 1 1 . . . . . 1 . . . 1 . . . . . . . . Utility 25 | . . . . 1 8 . 3 1 . 2 1 . 3 . 1 . . 3 . 1 . 1 . . . . Weapon 17 | . . 5 . . 2 . . . . 2 . . 1 . 3 . . 1 . 2 . . . 1 . . Tool/Special 1 | . . . . . . . . . . . . . . . . . . . . . . . 1 . . . Average Slot Usage (%) 90 | . 99 93 94 98 84 82 86 88 86 84 81 79 85 99 91 93 93 94 99 99 100 99 92 93 92 72 Engine 2 | . 13 12 9 7 4 . . . . . 2 2 . . . . . . . . . . 2 . . . Reactor 3 | . . . . . . . 5 6 6 5 2 . 2 4 4 5 5 5 5 4 4 4 2 4 7 6 Wheel 11 | . 28 27 26 30 18 16 20 20 20 20 17 19 19 16 . . . . . . . . . . . . Hover 11 | . . . . . . . . . . . . . . . 25 26 26 26 31 28 28 28 21 21 23 18 Device 11 | . 14 5 5 13 12 12 13 18 6 7 5 5 10 11 15 19 15 13 10 13 14 13 12 16 14 8 Storage 6 | . 14 12 9 7 6 6 6 6 6 5 5 5 5 5 5 5 5 5 5 4 4 4 4 4 4 4 Processor 10 | . . . . . 7 13 13 12 6 5 5 5 17 16 15 15 15 17 21 19 19 19 17 17 20 15 Hackware 3 | . . . 1 7 4 . . . 6 10 11 8 5 5 4 . 4 5 5 4 4 4 4 3 1 5 Protection 6 | . . 8 15 7 9 6 6 3 13 8 11 8 5 5 4 5 5 5 5 9 9 9 6 4 6 3 Energy Gun 1 | . . . 12 7 1 . . 4 . 6 16 5 . . . . . . . . . . . . . . Energy Cannon 5 | . 9 24 . . 3 19 19 7 . 3 . 6 . . 1 . . . . . . . . . . 3 Ballistic Gun 8 | . 17 1 14 11 4 . . 6 19 5 . . . . 6 15 15 14 14 13 13 9 13 16 15 5 Peak Build Rating 216 | 7 7 39 29 39 109 110 119 125 125 131 119 114 133 120 128 125 124 153 158 173 174 182 200 206 216 216 Average Rating 109 | 5 6 17 25 34 61 106 111 110 124 122 112 107 98 118 120 123 123 129 152 170 172 174 186 195 208 161 On Entrance 113 | . 7 7 18 26 39 109 103 119 125 125 117 105 105 119 118 124 124 123 153 153 173 172 178 200 201 212 Avg Prop Armor Cover (%) 6 | . . . . . . . . . . . . . 6 6 6 . . . . . . . . . . . Naked Turns . | . . . . . . . . . . . . . . . . . . . . . . . . . . . Heaviest Build 161 | 12 89 105 114 107 150 154 161 160 148 152 144 144 123 125 120 65 65 64 77 74 74 74 85 93 94 114 Greatest Support 99 | 26 26 62 46 56 56 60 64 68 68 84 56 66 66 60 81 68 68 84 84 90 90 90 84 87 99 99 Greatest Overweight (x) 5 | . 3 3 3 1 3 3 2 2 2 2 2 2 3 5 2 . . 1 . . . . 1 1 1 2 Average Overweight (x) . | . 1 1 2 1 1 2 2 1 2 1 2 1 1 2 . . . . . . . . . . . . Largest Inventory Capacity 25 | 8 25 25 25 25 25 25 25 25 25 25 25 25 25 25 25 15 15 15 15 15 15 15 15 15 15 15 Average Capacity 20 | 7 21 22 25 25 25 25 25 25 25 25 25 25 25 25 15 15 15 15 15 15 15 15 15 15 15 13 Most Carried 25 | . 8 25 23 25 25 25 25 25 25 25 25 25 25 25 25 15 15 15 15 15 15 15 15 15 15 15 Average Carried 18 | . 4 17 21 21 22 24 24 24 23 23 24 23 24 24 14 14 14 14 14 14 14 14 14 14 14 10 Final Capacity 25 | 8 20 25 25 25 25 25 25 25 25 25 25 25 25 25 15 15 15 15 15 15 15 15 15 15 15 5 Final Carried 25 | . 8 24 20 25 25 25 25 25 23 25 24 24 25 25 15 15 15 15 15 15 14 14 15 15 15 4 Class Distribution -------------------- 26% | Scavenger-Scout 20% | Scavenger-Tank 13% | Mutant 8% | Scavenger-Mutant 6% | Commander-Tank 4% | Scavenger-Ninja 3% | Gladiator 3% | Commander-Scout Dominant Class ---------------- Mutant | -10/Materials Mutant | -10/Subcaves Scavenger-Tank | -8/Materials Scavenger-Tank | -7/Factory Mutant | -6/Factory Commander-Tank | -6/Extension Commander-Tank | -6/Cetus Scavenger-Skirmisher | -6/Archives Scavenger-Tank | -6/Hub_04(d) Scavenger-Tank | -5/Factory Scavenger-Tank | -5/Upper Caves Scavenger-Tank | -5/Upper Caves Gladiator | -5/Zhirov Gladiator | -4/Proximity Caves Scavenger-Scout | -4/Factory Scavenger-Scout | -4/Upper Caves Scavenger-Scout | -4/Upper Caves Commander-Scout | -4/Warlord Scavenger-Scout | -3/Proximity Caves Scavenger-Scout | -3/Research Scavenger-Scout | -3/Armory Scavenger-Ninja | -3/Lab Scavenger-Scout | -2/Research Scavenger-Scout | -2/Testing Scavenger-Scout | -1/Access Scavenger-Gunner | -1/Command Resources | -11 -10 -10 -8 -7 -6 -6 -6 -6 -6 -5 -5 -5 -5 -4 -4 -4 -4 -4 -3 -3 -3 -3 -2 -2 -1 -1 ----------- Run | Yrd Mat Sub Mat Fac Fac Ext Cet Arc Hub Fac Upp Upp Zhi Pro Fac Upp Upp War Pro Res Arm Lab Res Tes Acc Com Matter Collected 13412 | 241 349 351 548 128 909 156 126 228 632 682 87 194 234 279 2064 429 246 352 240 855 172 . 1205 1169 834 702 Remotely 5 | . . . . . . . . . . . . . . . . . . . . . . . 5 . . . Salvage Created 19328 | 28 412 778 928 42 829 497 109 442 1012 2104 472 262 180 465 2872 325 271 40 432 1893 236 . 1142 1771 1017 769 Parts 926 | 4 33 46 65 2 37 22 4 26 43 97 22 9 12 12 108 21 10 2 24 76 12 . 45 83 76 35 Haulers Intercepted 19 | . 2 . 1 1 . 1 . . . . . . . . 5 . . . . 6 . . 3 . . . Recyclers Shooed 15 | . 2 . . . 1 2 . . . 4 . . . . 3 . . . . . . . . 2 . 1 Parts Field Recycled . | . . . . . . . . . . . . . . . . . . . . . . . . . . . Retrieved Matter . | . . . . . . . . . . . . . . . . . . . . . . . . . . . Parts Self-Destructed 98 | . . 7 . . . . . . . . 13 6 10 7 . 17 11 . 27 . . . . . . . Prevented 24 | . . . . . . . . . . . 10 3 . 2 . 9 . . . . . . . . . . Parts Restored . | . . . . . . . . . . . . . . . . . . . . . . . . . . . Kills | -11 -10 -10 -8 -7 -6 -6 -6 -6 -6 -5 -5 -5 -5 -4 -4 -4 -4 -4 -3 -3 -3 -3 -2 -2 -1 -1 ------- Run | Yrd Mat Sub Mat Fac Fac Ext Cet Arc Hub Fac Upp Upp Zhi Pro Fac Upp Upp War Pro Res Arm Lab Res Tes Acc Com Combat Hostiles Destroyed 267 | . 13 16 21 . 20 13 2 2 14 25 11 7 . 4 27 4 3 1 9 14 2 . 9 15 23 12 Melee 10 | . . . . . . . . . . . . . . 1 9 . . . . . . . . . . . Guns 141 | . 2 . 21 . 1 . . . 12 12 7 . . . 12 4 3 1 5 14 2 . 9 15 17 4 Cannons 55 | . 2 12 . . 15 7 1 . . 7 2 4 . . . . . . . . . . . . . 5 AOE 41 | . 8 3 . . 3 5 . . 2 6 . . . 3 1 . . . 4 . . . . . 6 . Classes Destroyed 25 | 1 5 1 3 . 3 1 . . 3 2 1 . . . . 1 . . . . . . 2 2 . . Worker 13 | . . . 1 . . 2 . . 1 4 . . . . 1 . . . . 1 . . . 3 . . Builder 13 | . . . 1 . 3 1 . . . 3 . . . . . . . . . 1 . . . 3 1 . Tunneler 1 | 1 . . . . . . . . . . . . . . . . . . . . . . . . . . Hauler 19 | . 2 . 1 1 . 1 . . . . . . . . 5 . . . . 6 . . 3 . . . Recycler 12 | . . . . . . . . . . 5 . . . . 4 . . . . . . . . 3 . . Minesweeper 1 | . . . . . . . . . . . 1 . . . . . . . . . . . . . . . Operator 15 | . 1 . . . 1 . . 9 . 1 . . . . . . . . . . . . . 1 1 1 Watcher 25 | . 3 . 2 . 1 2 . . 2 2 . . . . 6 . . . . 1 1 . 1 2 1 1 Swarmer 66 | . 9 3 3 . 4 4 . . . 5 6 1 . 4 5 . . 1 5 1 . . . . 15 . Saboteur 1 | . . . . . . . . . 1 . . . . . . . . . . . . . . . . . Grunt 68 | . 4 . 14 . 6 2 . . 5 5 1 5 . . 2 1 1 . 2 9 1 . 1 5 1 3 Brawler 2 | . . . . . . . . . . 1 . . . . . . . . . . . . . . . 1 Duelist 4 | . . . . . 2 . . . . 1 . . . . . . 1 . . . . . . . . . Protector 1 | . . . . . . . . . 1 . . . . . . . . . . . . . . . . . Sentry 38 | . . . 4 . 1 6 . 2 3 3 1 . . . 8 . 1 . 2 3 1 . 2 . 1 . Demolisher 1 | . . . . . . . . . . . . . . . . . . . . . . . 1 . . . Specialist 1 | . . . . . 1 . . . . . . . . . . . . . . . . . . . . . Hunter 15 | . . . . . . . . . . 7 1 . . . . 2 . . . . . . 3 2 . . Programmer 41 | . . . . . 6 . . . 1 3 2 1 . . 12 . . . . 1 . . . 5 6 4 Behemoth 1 | . . . . . . 1 . . . . . . . . . . . . . . . . . . . . Cetus Guard 2 | . . . . . . . 2 . . . . . . . . . . . . . . . . . . . M Guard 2 | . . . . . . . . . . . . . . . . . . . . . . . . . . 2 Enhanced Grunt 3 | . . . . . . . . . 3 . . . . . . . . . . . . . . . . . Lightning 3 | . . . . . . . . . 3 . . . . . . . . . . . . . . . . . Combat Programmer 2 | . . . . . . . . . . . . . . . . . . . . . . . . . . 2 Striker 2 | . . . . . . . . . . . . . . . . . . . . . . . . 2 . . Executioner 2 | . . . . . . . . . . . . . . . . . . . . . . . 2 . . . Alpha 7 1 | . . . . . . . . . . . . . . . . . . . . . . . . 1 . . Subdweller 13 | . . 13 . . . . . . . . . . . . . . . . . . . . . . . . Decomposer 1 | . . . . . . . . . . . . . . 1 . . . . . . . . . . . . Mutant 1 | . . . . . . . . . . . . . . . . 1 . . . . . . . . . . Best Kill Streak 9 | 1 4 3 5 1 4 7 1 3 4 9 4 5 . 3 4 2 2 1 4 8 1 . 3 5 7 3 Combat Bots Only 6 | . 3 3 5 . 4 5 1 1 4 5 4 5 . 3 3 2 2 1 4 6 1 . 3 3 6 3 Max Kills in Single Turn 6 | 1 3 3 2 1 3 3 1 1 4 3 1 1 . 3 1 1 1 1 4 3 1 . 1 3 6 1 Gunslinging 1 | . . . . . . . . . . . . . . . . . . . . . . . . . 1 . Exploded 6 | . 3 3 . . 3 3 . . 1 2 . . . 3 1 . . . 4 . . . . . 6 . Melee 1 | . . . . . . . . . . . . . . 1 1 . . . . . . . . . . . Uniques/NPCs Destroyed 2 | . . . . . . . . . . . . . . . . . . . . . . . . . 2 . Perun (-1/Access) Svarog (-1/Access) Combat | -11 -10 -10 -8 -7 -6 -6 -6 -6 -6 -5 -5 -5 -5 -4 -4 -4 -4 -4 -3 -3 -3 -3 -2 -2 -1 -1 -------- Run | Yrd Mat Sub Mat Fac Fac Ext Cet Arc Hub Fac Upp Upp Zhi Pro Fac Upp Upp War Pro Res Arm Lab Res Tes Acc Com Hostile Shots Fired 1983 | . 34 64 105 . 227 123 2 . 146 276 77 79 . 17 188 54 1 18 14 20 12 . 29 118 125 254 Missed 644 | . 15 17 29 . 69 49 1 . 47 66 10 24 . 6 73 21 . 9 9 9 6 . 11 43 41 89 Hits 1339 | . 19 47 76 . 158 74 1 . 99 210 67 55 . 11 115 33 1 9 5 11 6 . 18 75 84 165 Melee 14 | . . . . . 7 1 . . 2 . . . . . . . . . . . . . . 4 . . Projectile 1325 | . 19 47 76 . 151 73 1 . 97 210 67 55 . 11 115 33 1 9 5 11 6 . 18 71 84 165 AOE 12 | . . 4 . . . . . . . 3 . . . . . . . . . . . . . . . 5 Critical Strikes 43 | . . . 2 . 5 . . . 2 6 2 2 . 1 4 1 . . . 1 . . . 5 2 10 Part Disruptions 5 | . . . . . . . . . . . . . . . . . . . . . . . . 1 1 3 Damage Taken 27055 | . 206 1049 981 . 2751 875 27 43 1797 3679 1227 1059 . 146 2832 337 17 189 83 262 116 . 537 1530 1295 6017 Core 3554 | . 29 195 125 . 245 46 . . 164 307 24 154 . 21 378 16 . 23 12 . . . 82 135 105 1493 Absorbed by Shields 1370 | . . . . . . . 27 . . . . . . 54 . . . . 31 104 . . . 352 472 330 Ignored by Resistances 524 | . . . . . . . . . . 364 . . . 16 . . . . . . . . . . . 144 Regen/Repaired (Parts) 1270 | . . . . . 105 . . . . . . . . . 961 . . 23 . . . . . 65 . 116 Core Remaining (%) 69 | 100 . 10 77 100 . . . . 46 . . . . 49 . . . . 62 . . 100 . 85 . . Volleys Fired 972 | 2 52 64 69 3 80 39 5 56 44 90 27 27 12 1 74 13 11 7 11 43 9 1 41 67 46 78 Largest 4 | 2 2 2 3 3 3 3 3 3 3 3 3 2 1 1 3 3 3 3 3 3 3 2 4 4 4 4 Hottest 339 | 40 80 160 150 130 339 339 339 339 105 307 194 203 30 43 120 110 110 110 160 120 120 80 160 152 160 200 Shots Fired 2259 | 4 99 109 177 5 150 91 11 64 120 230 55 42 12 1 185 39 33 21 31 129 25 2 125 209 160 130 Gun 1708 | 4 57 3 177 2 56 . 2 53 115 187 47 10 . . 167 39 33 21 30 129 25 2 120 209 159 61 Cannon 499 | . 37 104 . 1 93 88 9 11 . 43 8 31 . . 7 . . . . . . . 1 . . 66 Launcher 34 | . 5 2 . . 1 3 . . 5 . . 1 . 1 10 . . . 1 . . . 1 . 1 3 Special 18 | . . . . 2 . . . . . . . . 12 . 1 . . . . . . . 3 . . . Kinetic 1507 | 4 57 3 105 2 100 3 . 12 120 97 . . . . 170 39 33 21 30 129 25 2 120 209 159 67 Thermal 612 | . 37 104 72 1 50 88 11 52 . 116 14 31 12 . . . . . . . . . 1 . . 23 Explosive 13 | . 5 2 . . . . . . . . . . . . . . . . 1 . . . 1 . 1 3 Electromagnetic 84 | . . . . . . . . . . 17 41 11 . 1 14 . . . . . . . . . . . Entropic 37 | . . . . . . . . . . . . . . . . . . . . . . . . . . 37 Robot Hit Streak 31 | 3 6 11 11 2 9 12 3 7 10 16 12 6 8 9 18 6 3 6 5 26 12 . 15 9 9 31 Robot Miss Streak 12 | . 6 3 7 1 6 4 1 5 6 5 5 3 1 . 5 2 2 3 2 4 1 . 6 8 5 12 Penetration Max 2 | . . . . . 1 . . . 1 1 . . . . 1 1 1 1 1 2 . . 1 2 1 2 Secondary Targets 37 | . . . 2 . . . . . 1 5 2 . . . 4 . 1 1 1 1 1 . 3 5 8 2 Max Gunslinging Chain 1 | . . . 1 . . . . . 1 1 1 . . . 1 . 1 1 1 1 1 . 1 1 1 1 Shots Hit Robots 1373 | 3 47 69 99 2 81 51 5 43 57 130 30 23 11 12 158 20 14 13 23 87 16 . 78 112 86 103 Core Hits 741 | 2 23 19 52 1 46 33 1 23 40 72 14 11 2 8 60 15 15 10 22 47 9 . 37 61 58 60 Critical Kills 100 | . 1 1 . . 2 2 . 3 7 5 . 2 . . 19 4 2 1 5 21 3 . 8 5 5 4 Critical Parts Destroyed 116 | . . . . . 2 . . . 7 15 . . . 1 31 2 6 2 2 17 5 . 11 2 6 7 Critical Strikes 258 | . 1 1 . . 4 2 . 5 16 21 . 2 . 2 58 6 9 6 12 40 8 . 22 7 11 25 Burn 2 | . . . . . . . . 2 . . . . . . . . . . . . . . . . . . Meltdown 11 | . 1 1 . . 1 2 . 1 . . . 2 . . . . . . . . . . . . . 3 Destroy 222 | . . . . . 3 . . 2 16 21 . . . . 40 6 9 6 12 40 8 . 22 7 11 19 Smash 15 | . . . . . . . . . . . . . . 2 13 . . . . . . . . . . . Sever 5 | . . . . . . . . . . . . . . . 5 . . . . . . . . . . . Sunder 3 | . . . . . . . . . . . . . . . . . . . . . . . . . . 3 Melee Attacks 139 | . . . . . . . . . . . . . . 14 108 . . 6 . 4 2 3 2 . . . Impact 88 | . . . . . . . . . . . . . . 5 77 . . 6 . . . . . . . . Slashing 33 | . . . . . . . . . . . . . . . 31 . . . . . . . 2 . . . Piercing 18 | . . . . . . . . . . . . . . 9 . . . . . 4 2 3 . . . . Sneak Attacks 9 | . . . . . . . . . . . . . . 1 7 . . . . . . . 1 . . . Combat Hostiles . | . . . . . . . . . . . . . . . . . . . . . . . . . . . Follow-up Attacks 2 | . . . . . . . . . . . . . . 1 1 . . . . . . . . . . . Damage Inflicted 47474 | 35 1018 1939 2205 19 2703 3162 197 1270 2944 5138 880 981 73 929 5610 190 204 159 759 816 164 . 1756 4475 3981 5867 Guns 22635 | 35 316 26 2205 19 709 . . 1029 1717 2686 593 105 . . 913 190 204 159 214 816 164 . 1603 4475 3288 1169 Cannons 13236 | . 355 1675 . . 1846 2360 197 241 . 1098 287 867 . . 249 . . . . . . . . . . 4061 Explosions 6432 | . 347 238 . . 136 802 . . 1227 1354 . 9 . 64 380 . . . 545 . . . . . 693 637 Melee 5086 | . . . . . . . . . . . . . . 865 4068 . . . . . . . 153 . . . Ramming 12 | . . . . . 12 . . . . . . . . . . . . . . . . . . . . . Kinetic 21510 | 35 316 26 1384 . 1766 802 . 190 2412 1217 . . . . 956 190 204 159 214 816 164 . 1603 4475 3288 1293 Thermal 12362 | . 355 1675 821 19 925 2360 197 1080 . 2611 404 867 73 . . . . . . . . . . . . 975 Explosive 3336 | . 347 238 . . . . . . . 763 . . . . 113 . . . 545 . . . . . 693 637 Electromagnetic 2206 | . . . . . . . . . 532 547 476 114 . 64 473 . . . . . . . . . . . Impact 2503 | . . . . . . . . . . . . . . 254 2249 . . . . . . . . . . . Slashing 1972 | . . . . . . . . . . . . . . . 1819 . . . . . . . 153 . . . Piercing 611 | . . . . . . . . . . . . . . 611 . . . . . . . . . . . . Entropic 2962 | . . . . . . . . . . . . . . . . . . . . . . . . . . 2962 Highest Corruption 28 | . 1 1 . . 4 4 1 14 11 4 9 9 5 15 7 . . . . . . . . 9 10 28 Average Corruption 4 | . 1 1 . . 1 1 1 7 9 3 7 7 5 6 2 . . . . . . . . 3 8 19 Corruption Purged 42 | . . . . . 1 4 1 18 . . . 4 . . 14 . . . . . . . . . . . Corruption Blocked . | . . . . . . . . . . . . . . . . . . . . . . . . . . . Effects 275 | . 5 18 . . 12 12 1 6 15 5 23 40 7 19 28 . . . . . . . . 10 19 55 Message Errors 72 | . 1 6 . . 3 3 . 2 5 . 9 8 2 3 8 . . . . . . . . 3 6 13 Matter Fused 53 | . 3 2 . . 3 2 . 3 3 1 3 11 2 3 6 . . . . . . . . 1 2 8 Heat Flow Errors 34 | . 1 2 . . 1 . . . 1 1 4 4 . 8 2 . . . . . . . . . 4 6 Energy Discharges 30 | . . 1 . . 1 2 . . 1 3 3 5 2 1 4 . . . . . . . . 2 1 4 Parts Rejected 3 | . . . . . . . . . . . . . . . 1 . . . . . . . . . 1 1 Parts Fused 3 | . . . . . . . 1 . . . . . . . . . . . . . . . . 1 . 1 Data Loss (minor) 32 | . . 3 . . 2 4 . . 1 . 2 6 1 2 2 . . . . . . . . 2 2 5 Data Loss (major) 12 | . . 1 . . . 1 . 1 . . 2 2 . 2 1 . . . . . . . . . . 2 Misfires 10 | . . 1 . . . . . . 1 . . 3 . . 2 . . . . . . . . . 1 2 Alerts 6 | . . 2 . . . . . . . . . 1 . . 2 . . . . . . . . . 1 . Misdirections 8 | . . . . . . . . . . . . . . . . . . . . . . . . . . 8 Weapon Failures 12 | . . . . . 2 . . . 3 . . . . . . . . . . . . . . 1 1 5 Overload Shots 2 | . . . . . . . 2 . . . . . . . . . . . . . . . . . . . Overflow Damage 2045 | . 21 6 . . 53 71 . 35 . 98 39 . . 109 1453 . . . 51 . . . . . 61 48 Projectiles 251 | . 21 6 . . 53 32 . 35 . 17 39 . . . . . . . . . . . . . . 48 Explosions 268 | . . . . . . 39 . . . 81 . . . . 36 . . . 51 . . . . . 61 . Melee 1526 | . . . . . . . . . . . . . . 109 1417 . . . . . . . . . . . Knockbacks 20 | . . . . . 8 . . . . . . . . 2 7 . . . . . . . . . . 3 Impact 7 | . . . . . . . . . . . . . . 2 5 . . . . . . . . . . . Kinetic 12 | . . . . . 8 . . . . . . . . . 1 . . . . . . . . . . 3 Secondary 1 | . . . . . . . . . . . . . . . 1 . . . . . . . . . . . Self-Inflicted Damage 408 | . 8 . . . 6 . . . 93 127 . . . . 174 . . . . . . . . . . . Shots 7 | . 1 . . . . . . . 1 2 . . . . 3 . . . . . . . . . . . Rammed 1 | . . . . . 1 . . . . . . . . . . . . . . . . . . . . . Targets Rammed 1 | . . . . . 1 . . . . . . . . . . . . . . . . . . . . . Kicked . | . . . . . . . . . . . . . . . . . . . . . . . . . . . Crushed . | . . . . . . . . . . . . . . . . . . . . . . . . . . . Highest Temperature 406 | . 267 254 337 . 177 199 183 183 344 224 198 194 . 267 405 47 110 44 54 24 19 . 200 200 406 279 Average Temperature 83 | . 52 88 112 . 54 93 100 44 98 104 94 104 . 114 73 16 52 14 18 13 9 . 54 48 143 143 Received Heat Transfer 4238 | . 57 204 531 . 754 159 . . 306 232 72 354 . 18 207 29 . 9 15 25 27 . 27 53 442 717 Effects 8 | . . . 4 . . . . . . . . . . . 1 . . . . . . . . . 1 2 Shutdowns 1 | . . . 1 . . . . . . . . . . . . . . . . . . . . . . . Energy Bleed 1 | . . . . . . . . . . . . . . . 1 . . . . . . . . . . . Interference 6 | . . . 3 . . . . . . . . . . . . . . . . . . . . . 1 2 Siege Activations . | . . . . . . . . . . . . . . . . . . . . . . . . . . . Martial Activations . | . . . . . . . . . . . . . . . . . . . . . . . . . . . Shielding Activations . | . . . . . . . . . . . . . . . . . . . . . . . . . . . Robots Disrupted 1 | . . . . . . . . . . 1 . . . . . . . . . . . . . . . . Combat Hostiles . | . . . . . . . . . . . . . . . . . . . . . . . . . . . Robots Corrupted 15 | . . . . . . . . . . . 2 1 . 1 11 . . . . . . . . . . . Combat Hostiles 9 | . . . . . . . . . . . 2 1 . 1 5 . . . . . . . . . . . Parts Fried 25 | . . . . . . . . . . 4 6 1 . 2 11 . . 1 . . . . . . . . Impact Corruptions 32 | . . . . . . . . . . . . . . 2 30 . . . . . . . . . . . Robots Melted 14 | . 1 1 . . 1 2 1 3 . . . 2 . . . . . . . . . . . . . 3 Combat Hostiles 12 | . 1 1 . . 1 1 1 2 . . . 2 . . . . . . . . . . . . . 3 Parts Melted 24 | . 2 2 . . 4 4 . 5 . 3 1 1 . . . . . . . . . . . . . 2 Heat Transferred 13742 | . 740 2294 975 25 827 2146 185 1702 . 3086 370 518 275 . . . . . . . . . . . . 599 Parts Sabotaged 4 | . . . . . 4 . . . . . . . . . . . . . . . . . . . . . Parts Stolen . | . . . . . . . . . . . . . . . . . . . . . . . . . . . Parts Stripped . | . . . . . . . . . . . . . . . . . . . . . . . . . . . Power Chain Reactions 4 | . . . . . . . . . 1 3 . . . . . . . . . . . . . . . . Alert | -11 -10 -10 -8 -7 -6 -6 -6 -6 -6 -5 -5 -5 -5 -4 -4 -4 -4 -4 -3 -3 -3 -3 -2 -2 -1 -1 ------- Run | Yrd Mat Sub Mat Fac Fac Ext Cet Arc Hub Fac Upp Upp Zhi Pro Fac Upp Upp War Pro Res Arm Lab Res Tes Acc Com Maximum Alert Level 4 | . 1 . 1 . 1 2 2 1 4 4 . . . . 2 . . . . 3 2 . 1 2 3 2 Low Security (%) 51 | 100 88 . 71 100 86 52 . 41 27 . . . . . 67 . . . . 36 . . 93 7 . 12 Level 1 19 | . 11 . 28 . 13 18 86 58 6 . . . . . 17 . . . . 13 44 . 6 38 10 18 Level 2 20 | . . . . . . 29 13 . 10 28 . . . . 14 . . . . 40 55 . . 54 35 69 Level 3 4 | . . . . . . . . . 6 33 . . . . . . . . . 9 . . . . 54 . Level 4 4 | . . . . . . . . . 49 37 . . . . . . . . . . . . . . . . Level 5 . | . . . . . . . . . . . . . . . . . . . . . . . . . . . High Security . | . . . . . . . . . . . . . . . . . . . . . . . . . . . Max Security . | . . . . . . . . . . . . . . . . . . . . . . . . . . . Peak Influence 1388 | 5 237 . 362 60 319 555 430 265 1349 1388 . . . . 540 . . . . 723 450 . 233 675 919 586 Initial 656 | . . . . 60 . 148 281 108 42 656 . . . . . . . . . 114 350 . . 123 396 552 Average 296 | . 76 . 163 11 87 284 344 201 782 962 . . . . 172 . . . . 382 399 . 63 399 703 439 Influence Increases 13673 | 5 431 100 693 38 791 1032 359 318 1635 1196 245 190 10 120 1664 124 92 247 339 1069 184 . 551 985 733 522 Destroy 0b10 Robot/C 6140 | . 260 60 420 . 400 580 160 80 500 500 220 140 . 80 640 80 80 40 200 420 80 . 180 300 460 260 Destroy 0b10 Robot/NC 555 | 5 30 . 25 5 25 40 10 45 20 75 5 . 10 15 80 . . . . 55 5 . 20 60 15 10 Destroy Leader 1138 | . 50 10 106 2 92 36 . . 124 114 20 20 . 10 182 10 . . 10 104 12 . 78 44 72 42 Allied During Kill 1373 | . . . . . . 268 160 125 366 . . . . . 3 4 12 12 129 266 19 . . . . 9 Successful Hack 807 | . 14 . 25 . 24 26 . . 26 72 . . . . 289 . . . . 92 21 . . 104 96 18 Select Force Hacks 110 | . . . . 30 . . . . 50 . . . . . . . . . . 30 . . . . . . Disable Machine 960 | . 15 . 15 . 30 45 15 60 195 210 . . . . 195 . . . . 15 45 . 15 75 30 . Anti-Garrison Action 300 | . . . . . . . . . 150 . . . . . . . . . . . . . 150 . . . Destroy Structure 1135 | . 32 . 12 1 25 37 14 8 189 150 . . . . 230 . . . . 12 2 . 78 297 30 18 Partial Spotted 135 | . 30 . . . . . . . . . . . . . 30 . . . . 15 . . . 15 15 30 Lose Combat Pursuer 1020 | . . 30 90 . 195 . . . 15 75 . 30 . 15 15 30 . 195 . 60 . . 30 90 15 135 Influence Decreases 13499 | 5 291 240 560 171 487 832 593 466 416 1161 902 645 274 120 1130 523 203 206 235 571 457 394 330 546 530 1211 Entered New Map 4112 | . . 68 . 73 . 156 223 162 80 685 510 137 264 . . 199 27 24 65 55 317 394 . 98 264 311 Time Decay 7127 | 5 281 172 360 98 417 486 270 254 246 416 342 458 10 120 580 294 156 122 170 386 140 . 320 398 246 380 Lost Part 810 | . 10 . 40 . 70 10 . 10 30 60 50 50 . . 60 10 . . . . . . 10 50 20 330 Lost Ally 877 | . . . 10 . . 180 100 40 60 . . . . . 67 20 20 60 . 130 . . . . . 190 Purge Threat 573 | . . . 150 . . . . . . . . . . . 423 . . . . . . . . . . . Squads Dispatched 85 | . 2 . 7 3 12 1 . . 11 5 . . . . 16 . . . . 6 1 . 1 8 7 5 Investigation 25 | . . . 4 3 3 1 . . 3 . . . . . 4 . . . . 3 . . . 2 . 2 Extermination 23 | . . . . . 4 . . . 1 1 . . . . 8 . . . . 1 1 . . 3 1 3 Reinforcement 18 | . 2 . 2 . 1 . . . 2 2 . . . . 3 . . . . 2 . . 1 2 1 . Assault 12 | . . . . . 2 . . . 4 2 . . . . 1 . . . . . . . . 1 2 . Garrison 7 | . . . 1 . 2 . . . 1 . . . . . . . . . . . . . . . 3 . Intercept . | . . . . . . . . . . . . . . . . . . . . . . . . . . . Searches Triggered . | . . . . . . . . . . . . . . . . . . . . . . . . . . . Unchained Authorized 1 | . . . . . . . . . . . . . . . . . . . . . 1 . . . . . Construction Impeded 4 | . . . 1 . . . . . 1 . . . . . 1 . . . . 1 . . . . . . Haulers Reinforced 2 | . . . . . 1 . . . . . . . . . . . . . . . . . 1 . . . Active Scanning Responses . | . . . . . . . . . . . . . . . . . . . . . . . . . . . Cargo Convoy Interrupts 1 | . . . . . 1 . . . . . . . . . . . . . . . . . . . . . Stealth | -11 -10 -10 -8 -7 -6 -6 -6 -6 -6 -5 -5 -5 -5 -4 -4 -4 -4 -4 -3 -3 -3 -3 -2 -2 -1 -1 --------- Run | Yrd Mat Sub Mat Fac Fac Ext Cet Arc Hub Fac Upp Upp Zhi Pro Fac Upp Upp War Pro Res Arm Lab Res Tes Acc Com Distress Signals 29 | . . . 4 . . 2 1 . 1 . . . . . 1 . . . . 11 1 . 4 1 1 2 Communications Jammed 24 | . . . . . . . . . . . . . . . 24 . . . . . . . . . . . Distress Signals 24 | . . . . . . . . . . . . . . . 24 . . . . . . . . . . . Times Spotted 574 | . 24 18 30 6 74 29 10 23 28 40 11 9 . 5 48 4 4 60 8 28 7 . 31 21 29 27 Peak Tracking Total 15 | . 3 3 5 4 14 9 5 2 5 5 5 5 . 4 2 3 4 15 4 5 6 . 7 4 6 10 Tactical Retreats 31 | . . 1 3 . 9 . . . 1 1 . 1 . 1 1 1 . 3 . 2 . . 1 2 1 3 Traps | -11 -10 -10 -8 -7 -6 -6 -6 -6 -6 -5 -5 -5 -5 -4 -4 -4 -4 -4 -3 -3 -3 -3 -2 -2 -1 -1 ------- Run | Yrd Mat Sub Mat Fac Fac Ext Cet Arc Hub Fac Upp Upp Zhi Pro Fac Upp Upp War Pro Res Arm Lab Res Tes Acc Com Traps Triggered 23 | . 1 1 2 . 1 4 . . 1 4 . . . . 5 . . . . . 1 . . 3 . . Indirectly 3 | . . . . . . . . . . . . . . . 3 . . . . . . . . . . . Trap Hack Attempts . | . . . . . . . . . . . . . . . . . . . . . . . . . . . Triggered . | . . . . . . . . . . . . . . . . . . . . . . . . . . . Disarmed . | . . . . . . . . . . . . . . . . . . . . . . . . . . . Reprogrammed . | . . . . . . . . . . . . . . . . . . . . . . . . . . . Reused . | . . . . . . . . . . . . . . . . . . . . . . . . . . . Traps Extracted . | . . . . . . . . . . . . . . . . . . . . . . . . . . . Installed . | . . . . . . . . . . . . . . . . . . . . . . . . . . . Triggered . | . . . . . . . . . . . . . . . . . . . . . . . . . . . Time Bombs Activated 1 | . . . . . . . . . . . . . . . . . . . . . . . . . . 1 Exploded 1 | . . . . . . . . . . . . . . . . . . . . . . . . . . 1 Machines | -11 -10 -10 -8 -7 -6 -6 -6 -6 -6 -5 -5 -5 -5 -4 -4 -4 -4 -4 -3 -3 -3 -3 -2 -2 -1 -1 ---------- Run | Yrd Mat Sub Mat Fac Fac Ext Cet Arc Hub Fac Upp Upp Zhi Pro Fac Upp Upp War Pro Res Arm Lab Res Tes Acc Com Machines Disabled 73 | . 1 1 1 . 2 5 1 4 14 14 . . . . 13 . 1 1 . 1 3 1 2 6 2 . Max in Single Turn 8 | . 1 1 1 . 1 2 1 1 8 3 . . . . 4 . 1 1 . . 1 1 1 1 1 . Garrison Access 10 | . . . . . 2 . . . 2 1 . . . . 2 . . . . 1 . . 1 1 . . Network Hub 2 | . . . . . . . . . 2 . . . . . . . . . . . . . . . . . Machines Repaired 1 | . . . . . . . . . . 1 . . . . . . . . . . . . . . . . Machines Dismantled . | . . . . . . . . . . . . . . . . . . . . . . . . . . . Machines Sabotaged 1 | . . . . . . . . . 1 . . . . . . . . . . . . . . . . . Overloaded Fab Kills . | . . . . . . . . . . . . . . . . . . . . . . . . . . . Hacking | -11 -10 -10 -8 -7 -6 -6 -6 -6 -6 -5 -5 -5 -5 -4 -4 -4 -4 -4 -3 -3 -3 -3 -2 -2 -1 -1 --------- Run | Yrd Mat Sub Mat Fac Fac Ext Cet Arc Hub Fac Upp Upp Zhi Pro Fac Upp Upp War Pro Res Arm Lab Res Tes Acc Com Machines Accessed 140 | . 8 2 6 2 8 10 1 . 4 7 2 1 4 . 34 1 1 4 . 13 5 . . 10 7 10 Terminals 80 | . 6 . 5 . 3 10 1 . 3 4 . . . . 17 . . . . 7 4 . . 5 6 9 Fabricators 9 | . . . . 1 . . . . . 2 . . . . 3 . . . . 1 1 . . 1 . . Repair Stations 6 | . . . . . 1 . . . . . . . . . 4 . . . . . . . . 1 . . Recycling Units 14 | . 2 . . 1 2 . . . . . . . . . 5 . . . . 3 . . . . . 1 Scanalyzers 8 | . . . 1 . 1 . . . . . . . . . 3 . . . . 1 . . . 2 . . Garrison Access 8 | . . . . . 1 . . . 1 1 . . . . 2 . . . . 1 . . . 1 1 . Total Hacks 490 | . 21 4 29 3 14 19 3 . 9 37 7 1 17 . 164 1 1 6 . 47 20 . . 44 16 27 Successful 245 | . 13 4 13 2 5 8 . . 5 23 7 1 17 . 89 1 1 6 . 10 10 . . 19 6 5 Failed 243 | . 8 . 16 1 9 11 3 . 4 14 . . . . 74 . . . . 36 10 . . 25 10 22 Catastrophic 60 | . . . 1 1 2 5 . . 1 4 . . . . 18 . . . . 10 2 . . 6 3 7 Database Lockouts 2 | . . . . . . . . . . . . . . . 1 . . . . 1 . . . . . . Manual 176 | . 18 . 26 2 . 5 1 . 4 21 . . . . 72 . . . . 4 4 . . 17 1 1 Terminals 314 | . 19 . 27 . 6 19 3 . 7 27 . . . . 98 . . . . 24 17 . . 28 15 24 Fabricators 42 | . . . . 1 . . . . . 9 . . . . 21 . . . . 6 3 . . 2 . . Repair Stations 18 | . . . . . 2 . . . . . . . . . 11 . . . . . . . . 5 . . Recycling Units 38 | . 2 . . 2 3 . . . . . . . . . 16 . . . . 12 . . . . . 3 Scanalyzers 30 | . . . 2 . 2 . . . . . . . . . 15 . . . . 4 . . . 7 . . Garrison Access 11 | . . . . . 1 . . . 2 1 . . . . 3 . . . . 1 . . . 2 1 . Terminal Hacks 115 | . 3 4 2 . 1 8 . . 2 5 7 1 17 . 31 1 1 6 . 2 6 . . 8 6 4 Record 20 | . . 3 . . . . . . . . 6 . 5 . . . . 5 . . 1 . . . . . Part Schematic 6 | . . . . . . . . . . . . . 4 . 2 . . . . . . . . . . . Robot Schematic 1 | . 1 . . . . . . . . . . . . . . . . . . . . . . . . . Robot Analysis 5 | . . . . . . . . . . . . . 4 . 1 . . . . . . . . . . . Prototype ID Bank 6 | . . . . . . . . . 1 . . . 4 . . . . . . . . . . 1 . . Open Door 15 | . . . . . . 5 . . . . 1 1 . . . 1 1 1 . . 1 . . . 3 1 Level Access Points 2 | . . . . . . . . . . 1 . . . . . . . . . . . . . 1 . . Branch Access Points 4 | . . . 1 . 1 . . . . . . . . . 2 . . . . . . . . . . . Emergency Access Points 3 | . . . . . . . . . . . . . . . 1 . . . . . 1 . . 1 . . Machine Index 1 | . . . . . . . . . . 1 . . . . . . . . . . . . . . . . Terminal Index 5 | . 1 . . . . . . . . 1 . . . . 1 . . . . 1 . . . 1 . . Scanalyzer Index 1 | . . . . . . . . . . . . . . . 1 . . . . . . . . . . . Garrison Index 1 | . . . . . . . . . . . . . . . 1 . . . . . . . . . . . Alert Level 9 | . . . . . . 1 . . . 1 . . . . 4 . . . . . . . . 2 . 1 Unreport Threat 4 | . . . 1 . . . . . . . . . . . 3 . . . . . . . . . . . Locate Traps 6 | . . . . . . 1 . . . . . . . . 2 . . . . . 1 . . 1 . 1 Dispatch Records 1 | . . . . . . . . . . . . . . . . . . . . . . . . . 1 . Security Status 1 | . . . . . . . . . . . . . . . 1 . . . . . . . . . . . Investigation Status 1 | . . . . . . . . . . . . . . . 1 . . . . . . . . . . . Recall Investigation 1 | . . . . . . . . . . . . . . . 1 . . . . . . . . . . . Recall Extermination 1 | . . . . . . . . . . . . . . . 1 . . . . . . . . . . . Recall Reinforcements 2 | . . . . . . . . . . . . . . . 1 . . . . 1 . . . . . . Hauler Manifests 2 | . . . . . . . . . . . . . . . 2 . . . . . . . . . . . Registered Components 6 | . 1 . . . . . . . 1 . . . . . 1 . . . . . 1 . . . 1 1 Registered Prototypes 2 | . . . . . . . . . . . . . . . 2 . . . . . . . . . . . Zone Layout 8 | . . . . . . 1 . . . 1 . . . . 3 . . . . . 1 . . 1 1 . Proto ID Catalog 1 | . . 1 . . . . . . . . . . . . . . . . . . . . . . . . Fabricator Hacks 15 | . . . . . . . . . . 3 . . . . 8 . . . . 2 1 . . 1 . . Network Status 6 | . . . . . . . . . . 2 . . . . 2 . . . . . 1 . . 1 . . Load Schematic 4 | . . . . . . . . . . . . . . . 3 . . . . 1 . . . . . . Build 5 | . . . . . . . . . . 1 . . . . 3 . . . . 1 . . . . . . Repair Station Hacks 15 | . . . . . 2 . . . . . . . . . 10 . . . . . . . . 3 . . Scan Component 8 | . . . . . 1 . . . . . . . . . 5 . . . . . . . . 2 . . Repair 7 | . . . . . 1 . . . . . . . . . 5 . . . . . . . . 1 . . Recycling Unit Hacks 9 | . 2 . . . 1 . . . . . . . . . 3 . . . . 2 . . . . . 1 Retrieve Components 9 | . 2 . . . 1 . . . . . . . . . 3 . . . . 2 . . . . . 1 Scanalyzer 16 | . . . 2 . . . . . . . . . . . 10 . . . . 2 . . . 2 . . Insert Component 5 | . . . . . . . . . . . . . . . 5 . . . . . . . . . . . Analyze 2 | . . . . . . . . . . . . . . . 2 . . . . . . . . . . . Retrieve Study 9 | . . . 2 . . . . . . . . . . . 3 . . . . 2 . . . 2 . . Garrison Access Hacks 6 | . . . . . 1 . . . . 1 . . . . 2 . . . . 1 . . . 1 . . Seal Access 6 | . . . . . 1 . . . . 1 . . . . 2 . . . . 1 . . . 1 . . Unauthorized Hacks 69 | . 8 . 9 2 . . . . 3 14 . . . . 25 . . . . 1 3 . . 4 . . Terminals 55 | . 8 . 9 . . . . . 3 10 . . . . 19 . . . . . 2 . . 4 . . Track 6 | . . . . . . . . . . 2 . . . . 3 . . . . . 1 . . . . . Assimilate 2 | . . . 1 . . . . . . . . . . . 1 . . . . . . . . . . . Botnet 18 | . 3 . 3 . . . . . 1 3 . . . . 7 . . . . . 1 . . . . . Disrupt 1 | . . . . . . . . . . . . . . . 1 . . . . . . . . . . . Operators 3 | . . . . . . . . . . 1 . . . . 1 . . . . . . . . 1 . . Skim 23 | . 5 . 5 . . . . . . 4 . . . . 6 . . . . . . . . 3 . . Sabotage 2 | . . . . . . . . . 2 . . . . . . . . . . . . . . . . . Fabricators 10 | . . . . 1 . . . . . 4 . . . . 4 . . . . . 1 . . . . . Report 1 | . . . . . . . . . . 1 . . . . . . . . . . . . . . . . Prioritize 3 | . . . . . . . . . . 1 . . . . 2 . . . . . . . . . . . Liberate 4 | . . . . . . . . . . 1 . . . . 2 . . . . . 1 . . . . . Fabnet 1 | . . . . . . . . . . 1 . . . . . . . . . . . . . . . . Recompile 1 | . . . . 1 . . . . . . . . . . . . . . . . . . . . . . Repair Stations . | . . . . . . . . . . . . . . . . . . . . . . . . . . . Recycling Units 4 | . . . . 1 . . . . . . . . . . 2 . . . . 1 . . . . . . Monitor 1 | . . . . . . . . . . . . . . . 1 . . . . . . . . . . . Recyclers 1 | . . . . . . . . . . . . . . . 1 . . . . . . . . . . . Tunnel 2 | . . . . 1 . . . . . . . . . . . . . . . 1 . . . . . . Scanalyzers . | . . . . . . . . . . . . . . . . . . . . . . . . . . . Garrison Access . | . . . . . . . . . . . . . . . . . . . . . . . . . . . Data Cores Recovered 5 | . . . . . 1 . . . . . . . . . . . . . . 1 . . . 1 1 1 Used 1 | . . . . . . . . . . . . . . . . . . . . . . . . . . 1 Hacking Detections 92 | . 6 . 6 1 5 7 1 . 3 4 . . . . 25 . . . . 11 3 . . 7 5 8 Full Trace Events 12 | . . . 1 . 2 . . . 1 . . . . . 4 . . . . 2 . . . . . 2 Feedback Events 3 | . . . . . . . . . 1 . . . . . 1 . . . . . . . . . . 1 Corruption 1 | . . . . . . . . . . . . . . . 1 . . . . . . . . . . . Hackware Fried 2 | . . . . . . . . . 1 . . . . . . . . . . . . . . . . 1 Feedback Blocked . | . . . . . . . . . . . . . . . . . . . . . . . . . . . Robot Schematics Acquired 1 | . 1 . . . . . . . . . . . . . . . . . . . . . . . . . Robots Built 1 | . . . . . . . . . . . . . . . 1 . . . . . . . . . . . Authchips . | . . . . . . . . . . . . . . . . . . . . . . . . . . . Time 40 | . . . . . . . . . . . . . . . 40 . . . . . . . . . . . Total Robot Build Rating 1 | . . . . . . . . . . . . . . . 1 . . . . . . . . . . . Part Schematics Acquired 8 | . . . . . . . . . . . . . 4 . 4 . . . . . . . . . . . Parts Built 7 | . . . . . . . . . . 1 . . . . 4 . . . . 2 . . . . . . Authchips . | . . . . . . . . . . . . . . . . . . . . . . . . . . . Time 175 | . . . . . . . . . . 69 . . . . 64 . . . . 42 . . . . . . Total Part Build Rating 57 | . . . . . . . . . . 9 . . . . 32 . . . . 16 . . . . . . Part Studies Acquired 9 | . . . 2 . . . . . . . . . . . 3 . . . . 2 . . . 2 . . Parts Repaired 7 | . . . . . 1 . . . . . . . . . 5 . . . . . . . . 1 . . Time 343 | . . . . . 44 . . . . . . . . . 237 . . . . . . . . 62 . . Parts Recycled . | . . . . . . . . . . . . . . . . . . . . . . . . . . . Recycled Matter . | . . . . . . . . . . . . . . . . . . . . . . . . . . . Retrieved Matter . | . . . . . . . . . . . . . . . . . . . . . . . . . . . Retrieved Components 11 | . 2 . . . . . . . . . . . . . 2 . . . . 6 . . . . . 1 Parts Scanalyzed 2 | . . . . . . . . . . . . . . . 2 . . . . . . . . . . . Part Schematics Acquired 2 | . . . . . . . . . . . . . . . 2 . . . . . . . . . . . Parts Damaged 1 | . . . . . . . . . . . . . . . 1 . . . . . . . . . . . Bothacking | -11 -10 -10 -8 -7 -6 -6 -6 -6 -6 -5 -5 -5 -5 -4 -4 -4 -4 -4 -3 -3 -3 -3 -2 -2 -1 -1 ------------ Run | Yrd Mat Sub Mat Fac Fac Ext Cet Arc Hub Fac Upp Upp Zhi Pro Fac Upp Upp War Pro Res Arm Lab Res Tes Acc Com Used RIF Installer . | . . . . . . . . . . . . . . . . . . . . . . . . . . . Robots Hacked 15 | . . . . 1 . . . . . . . . . . 4 . 1 4 . 3 . . 2 . . . Non-combat 1 | . . . . . . . . . . . . . . . 1 . . . . . . . . . . . Combat 14 | . . . . 1 . . . . . . . . . . 3 . 1 4 . 3 . . 2 . . . Robot Hacks Applied 4 | . . . . 1 . . . . . . . . . . 1 . . . . . . . 2 . . . parse_system 3 | . . . . 1 . . . . . . . . . . . . . . . . . . 2 . . . find_chute 1 | . . . . . . . . . . . . . . . 1 . . . . . . . . . . . Relay Couplers Released 5 | . . . . . 3 . . . 1 . . . . . . . . . . . . . 1 . . . Machine Destruction 5 | . . . . . 3 . . . 1 . . . . . . . . . . . . . 1 . . . Fabnet Peak Effective % 3 | . . . . . . . . . . . . . . 3 3 3 3 3 1 1 1 1 . . . . Autooverrided 11 | . . . . . . . . . . . . . . . 3 . 1 4 . 3 . . . . . . Robots Rewired 22 | . . . . . . 12 . . . . . . . . . 3 1 5 1 . . . . . . . Allies Hacked . | . . . . . . . . . . . . . . . . . . . . . . . . . . . Hacks Repelled 1 | . . . . . . . . . . . . . . . . . . . . . . . 1 . . . Allies | -11 -10 -10 -8 -7 -6 -6 -6 -6 -6 -5 -5 -5 -5 -4 -4 -4 -4 -4 -3 -3 -3 -3 -2 -2 -1 -1 -------- Run | Yrd Mat Sub Mat Fac Fac Ext Cet Arc Hub Fac Upp Upp Zhi Pro Fac Upp Upp War Pro Res Arm Lab Res Tes Acc Com Total Allies 63 | . . . 1 . . 22 5 . . . . . . . 7 3 2 9 1 3 . . . . 3 7 Largest Group 12 | . . . 1 . . 12 12 10 7 . . . . . 3 3 3 8 8 8 2 . . . . 7 Highest-Rated Group 667 | . . . 10 . . 481 667 630 535 . . . . . 141 144 143 419 453 453 113 . . . . 95 Highest-Rated Ally 159 | . . . 10 . . 159 159 96 96 . . . . . 56 48 48 68 68 68 64 . . . . 14 Total Orders 10 | . . . . . . . 1 . . . . . . . . . 2 5 . . 1 . . . . 1 STAY 6 | . . . . . . . 1 . . . . . . . . . 1 3 . . 1 . . . . . FOLLOW 3 | . . . . . . . . . . . . . . . . . 1 2 . . . . . . . . EXPLORE 1 | . . . . . . . . . . . . . . . . . . . . . . . . . . 1 Ally Attacks 510 | . . . . . . 91 69 36 68 . . . . . 17 3 7 9 2 45 17 . . . . 146 Total Damage 14886 | . . . . . . 2174 1506 1008 2318 . . . . . 455 125 191 598 147 1513 611 . . . . 4240 Kills 64 | . . . . . . 19 8 3 13 . . . . . 5 1 1 1 1 9 2 . . . . 1 Allies Corrupted . | . . . . . . . . . . . . . . . . . . . . . . . . . . . Allies Melted 2 | . . . . . . . . . . . . . . . . . . 2 . . . . . . . . Intel | -11 -10 -10 -8 -7 -6 -6 -6 -6 -6 -5 -5 -5 -5 -4 -4 -4 -4 -4 -3 -3 -3 -3 -2 -2 -1 -1 ------- Run | Yrd Mat Sub Mat Fac Fac Ext Cet Arc Hub Fac Upp Upp Zhi Pro Fac Upp Upp War Pro Res Arm Lab Res Tes Acc Com Active Infowar (turns) 21414 | 15 960 895 . 416 1398 1267 581 548 527 1009 774 1156 283 859 2878 640 505 1159 362 909 287 283 1248 947 520 988 Optics 18002 | . . . . . 272 1267 581 548 527 1009 774 1156 283 859 2878 640 505 1159 362 909 287 283 1248 947 520 988 Sensors 10231 | . . . . 416 1126 . . . . . . . . . 2020 552 497 1159 362 909 287 283 1248 852 520 . Terrain 1 | . . . . . . . . . . . . . . . . . . . . . . . 1 . . . Seismic 2280 | 15 960 895 . . . . . . . . . . . . 409 . . . . . . . 1 . . . Decoding 1747 | . . . . . . . . . . . . . . . 1747 . . . . . . . . . . . T.N.C. 1 | . . . . . . . . . . . . . . . . . . . . . . . 1 . . . Cloaking 265 | . . . . . . . . . . . . . . . 265 . . . . . . . . . . . Jamming 3861 | . . . . . . . . . . . . 1 98 859 2563 160 . . . 1 77 54 2 . . 46 Robot Analysis Total 5 | . . . . . . . . . . . . . 4 . 1 . . . . . . . . . . . Derelict Logs Recovered 8 | . . 1 . . . . . . . . 2 1 . . . 2 2 . . . . . . . . . Drone Launches 6 | . . . . . . . . . . . . . . . . . . . . . . . . . . 6 Drone Recoveries 1 | . . . . . . . . . . . . . . . . . . . . . . . . . . 1 Decoded 0b10 Intel 25 | . . . . . . . . . . . . . . . 25 . . . . . . . . . . . Patrols 8 | . . . . . . . . . . . . . . . 8 . . . . . . . . . . . Investigations 2 | . . . . . . . . . . . . . . . 2 . . . . . . . . . . . Reinforcements 1 | . . . . . . . . . . . . . . . 1 . . . . . . . . . . . Guards 14 | . . . . . . . . . . . . . . . 14 . . . . . . . . . . . Exploration | -11 -10 -10 -8 -7 -6 -6 -6 -6 -6 -5 -5 -5 -5 -4 -4 -4 -4 -4 -3 -3 -3 -3 -2 -2 -1 -1 ------------- Run | Yrd Mat Sub Mat Fac Fac Ext Cet Arc Hub Fac Upp Upp Zhi Pro Fac Upp Upp War Pro Res Arm Lab Res Tes Acc Com Turns Passed 23759 | 54 960 2221 892 477 1425 1267 581 548 527 1009 774 1156 283 859 2878 640 505 1159 362 909 287 283 1248 947 520 988 Spaces Moved 21346 | 42 644 1409 491 337 826 714 314 236 217 556 540 886 189 630 3265 808 702 1396 445 1219 415 357 1749 1220 733 1006 Core 196 | 1 . . . . . . . . . . . . . . . . . . . . . . . . . 195 Treads . | . . . . . . . . . . . . . . . . . . . . . . . . . . . Legs 5 | . . . . . . . . . . . . . 4 1 . . . . . . . . . . . . Wheels 8069 | 41 644 1409 491 337 826 714 314 236 217 556 540 886 185 629 44 . . . . . . . . . . . Hover 13076 | . . . . . . . . . . . . . . . 3221 808 702 1396 445 1219 415 357 1749 1220 733 811 Flight . | . . . . . . . . . . . . . . . . . . . . . . . . . . . Fastest Speed 35 | 50 90 105 116 98 98 123 123 109 129 104 126 102 102 119 46 46 46 44 45 45 45 45 45 42 38 35 Average Speed 74 | 89 114 120 119 98 114 126 124 125 129 113 126 119 111 119 52 46 46 46 45 45 45 45 47 44 38 54 Slowest Speed 330 | 100 135 145 141 98 145 140 125 129 129 129 126 126 330 190 164 46 46 110 45 45 45 45 137 126 128 225 Overloaded Moves . | . . . . . . . . . . . . . . . . . . . . . . . . . . . Propulsion Burnouts . | . . . . . . . . . . . . . . . . . . . . . . . . . . . Robots Hopped . | . . . . . . . . . . . . . . . . . . . . . . . . . . . Potential Cave-ins 8 | . . . . . . . . . . . . . . . . . . 3 . . . . . 5 . . Cave-ins Triggered . | . . . . . . . . . . . . . . . . . . . . . . . . . . . Teleports 1 | . . . . . . . . . . . . . . . . . . . . . 1 . . . . . Exploration Rate (%) 58 | 3 96 77 44 10 26 88 87 93 36 24 51 93 63 62 69 85 70 92 67 42 21 96 36 90 16 39 Regions Visited 26 Branch Regions 17 Pre-discovered Areas 7 | . . 1 . 1 . . . . . . . . 3 . . . 1 . . 1 . . . . . . Known Exits Taken 17 | . . 1 . . 1 1 1 . . . 1 . . 1 1 1 1 1 1 1 1 1 1 1 1 . Unknown Exits Taken 9 | 1 1 . 1 1 . . . 1 1 1 . 1 1 . . . . . . . . . . . . . Scrap Searched 25 | . . 13 . . . . . . . . 1 2 . 3 . 2 2 . 2 . . . . . . . Spaces Dug 55 | . . . . . 4 1 . . . 6 . . . 1 30 1 1 . . 2 1 . . 7 1 . Terrain Destroyed 882 | . 35 15 8 . 23 34 4 5 266 109 . 6 . 1 135 2 2 . 24 5 1 . 41 128 34 4 Melee 34 | . . . . . . . . . . . . . . 1 30 . . . . 2 1 . . . . . Projectile 304 | . . 6 8 . 20 17 4 5 41 30 . 6 . . . . . . . . . . 24 128 15 . AOE 526 | . 35 9 . . 3 17 . . 225 79 . . . . 101 . . . 24 . . . 15 . 18 . Terrain Rammed . | . . . . . . . . . . . . . . . . . . . . . . . . . . . Walls Destroyed . | . . . . . . . . . . . . . . . . . . . . . . . . . . . Machines Disabled . | . . . . . . . . . . . . . . . . . . . . . . . . . . . Actions | -11 -10 -10 -8 -7 -6 -6 -6 -6 -6 -5 -5 -5 -5 -4 -4 -4 -4 -4 -3 -3 -3 -3 -2 -2 -1 -1 --------- Run | Yrd Mat Sub Mat Fac Fac Ext Cet Arc Hub Fac Upp Upp Zhi Pro Fac Upp Upp War Pro Res Arm Lab Res Tes Acc Com Total 27157 | 51 763 1824 650 480 1167 1003 501 429 371 749 585 935 253 717 4101 1047 866 1891 582 1478 489 471 2078 1488 863 1325 Wait 3314 | 1 49 257 54 110 177 122 145 111 100 31 6 6 2 52 404 200 135 397 113 188 50 86 172 134 47 165 Move 21321 | 41 643 1408 490 336 826 713 313 235 216 555 539 885 188 629 3264 807 701 1395 444 1218 414 356 1748 1219 732 1006 Hop . | . . . . . . . . . . . . . . . . . . . . . . . . . . . Pick Up 225 | . 7 41 5 12 24 5 13 5 2 18 3 5 12 2 27 4 1 10 . 5 . 2 7 5 5 5 Fast Attach 286 | 7 2 4 6 4 18 4 3 6 2 8 1 5 10 6 51 1 6 18 2 3 3 9 45 25 12 25 Attach 108 | . . 10 9 4 6 2 1 . 4 10 3 5 3 3 13 1 . 1 1 2 1 2 2 6 5 14 Detach 36 | . 1 . 1 . 1 . . . 1 1 1 . 2 3 7 . 1 1 1 . . 2 3 3 3 4 Swap 177 | . 8 20 7 3 3 4 6 10 1 11 3 1 5 3 55 2 1 5 . 6 6 2 8 3 2 2 Drop 401 | . 1 20 9 8 32 6 15 6 1 13 2 1 19 7 86 4 7 31 2 9 4 8 50 26 11 23 Fire 972 | 2 52 64 69 3 80 39 5 56 44 90 27 27 12 1 74 13 11 7 11 43 9 1 41 67 46 78 Melee 134 | . . . . . . . . . . . . . . 11 106 . . 6 . 4 2 3 2 . . . Ram . | . . . . . . . . . . . . . . . . . . . . . . . . . . . Kick . | . . . . . . . . . . . . . . . . . . . . . . . . . . . Crush . | . . . . . . . . . . . . . . . . . . . . . . . . . . . Escape Stasis 27 | . . . . . . 8 . . . 8 . . . . 11 . . . . . . . . . . . Rewire 146 | . . . . . . 100 . . . . . . . . . 15 3 20 8 . . . . . . . Trap 1 | . . . . . . . . . . . . . . . . . . . . . . . . . . 1 Miscellaneous 9 | . . . . . . . . . . 4 . . . . 3 . . . . . . . . . . 2 Route ------- -11/Scrapyard -10/Materials (discovered 5 exits: [*Mat x3] / [*Min] / *Sub) -10/Subcaves (discovered 3 exits: *Mat x2 / [*Scr]) -8/Materials -7/Factory (discovered 2 exits: *Fac / [*Low]) -6/Factory (discovered 5 exits: *Fac / Low x2 / *Ext x2) -6/Extension (discovered 2 exits: *Fac / *Cet) -6/Cetus (discovered 2 exits: *Fac / *Arc) -6/Archives (discovered 3 exits: *Fac / *Hub x2) -6/Hub_04(d) -5/Factory (discovered 5 exits: Fac x4 / *Upp) -5/Upper Caves -5/Upper Caves (discovered 2 exits: *Fac / *Zhi) -5/Zhirov -4/Proximity Caves -4/Factory (discovered 6 exits: *Res x4 / *Upp x2) -4/Upper Caves -4/Upper Caves (discovered 2 exits: *Res / *War) -4/Warlord -3/Proximity Caves -3/Research (discovered 5 exits: *Res x2 / *Arm / [*Qua x2]) -3/Armory -3/Lab -2/Research (discovered 3 exits: *Acc / *Tes x2) -2/Testing -1/Access -1/Command History --------- Turn | Location | Event 17 | -11/Scrapyard | Discovered new exit (range 16) 55 | -11/Scrapyard | Entered Materials 276 | -10/Materials | Discovered new exit (range 16) 310 | -10/Materials | Build established: Mutant 386 | -10/Materials | Discovered new exit (range 7) 481 | -10/Materials | Discovered new exit (range 15) 711 | -10/Materials | Discovered new exit (range 16) 780 | -10/Materials | Discovered new exit (range 16) 1015 | -10/Materials | Entered Subcaves 1016 | -10/Subcaves | Approached by a straggling Scientist 1044 | -10/Subcaves | Shifting Twisted Machinery released Mak. Light Armor Plating 1452 | -10/Subcaves | Visited 4L-MR0's lab 1466 | -10/Subcaves | Found Tower Shield 1468 | -10/Subcaves | Attached Tower Shield, gained temporary slots: Power, Propulsion x2, Utility x2, Weapon x2 1753 | -10/Subcaves | Shifting Twisted Machinery released Sub. Laser 1755 | -10/Subcaves | Shifting Twisted Machinery released Sub. Laser 1767 | -10/Subcaves | Discovered new exit (range 7) 1768 | -10/Subcaves | Shifting Twisted Machinery released Scrap Shield 1846 | -10/Subcaves | Core integrity fell below 50% 1850 | -10/Subcaves | Ambushed by angry Subdweller bent on revenge 2018 | -10/Subcaves | Learned location of Zion (-7) 2018 | -10/Subcaves | Met a Zionite searching for "candidates" 2454 | -10/Subcaves | Build established: Scavenger-Mutant 2496 | -10/Subcaves | A swath of the cavern ceiling suddenly collapsed 2790 | -10/Subcaves | Visited Clippyterm 2794 | -10/Subcaves | Learned Factory trap positions 3024 | -10/Subcaves | Identified exit to Materials 3080 | -10/Subcaves | Shifting Twisted Machinery released Flamer 3089 | -10/Subcaves | Core integrity fell below 20% 3236 | -10/Subcaves | Entered Materials 3236 | -8/Materials | Evolved 4 slots: Propulsion x1, Utility x2, Weapon x1 3294 | -8/Materials | Garrison activated, responded to threat 3533 | -8/Materials | Build established: Scavenger-Tank 3871 | -8/Materials | Discovered new exit (range 16) 4033 | -8/Materials | Met 7R-MNS 4128 | -8/Materials | Entered Factory 4128 | -7/Factory | Evolved 2 slots: Propulsion x1, Utility x1 4129 | -7/Factory | Caught up to 7R-MNS 4129 | -7/Factory | Loaded intel: 74 trap records 4283 | -7/Factory | Discovered new exit (range 9) 4586 | -7/Factory | Discovered new exit (range 15) 4605 | -7/Factory | Entered another Factory area 4605 | -6/Factory | Evolved 2 slots: Utility x2 4606 | -6/Factory | Caught up to 7R-MNS 4834 | -6/Factory | Garrison activated, responded to threat 5012 | -6/Factory | Discovered new exit (range 9) 5012 | -6/Factory | 7R-MNS lamented failing the tripod run 5234 | -6/Factory | Lost 4 parts (2n1u1w) 5320 | -6/Factory | Identified exit to Lower Caves 5320 | -6/Factory | Identified exit to Extension 5382 | -6/Factory | Garrison activated, responded to threat 5475 | -6/Factory | Build established: Mutant 5637 | -6/Factory | Spotted B-75 Beast 5695 | -6/Factory | Repaired Gauss Rifle 5727 | -6/Factory | Allied Derelicts ambushed cargo convoy from Garrison Access 5727 | -6/Factory | Cargo convoy interrupted 5761 | -6/Factory | Found Centrium Heavy Armor Plating 5796 | -6/Factory | Lost 6 allies 5812 | -6/Factory | Found Centrium Heavy Armor Plating 5814 | -6/Factory | Found Centrium Heavy Armor Plating 6030 | -6/Factory | Entered Extension 6089 | -6/Extension | Build established: Tank 6108 | -6/Extension | Rescued a captive Derelict 6110 | -6/Extension | Rescued a captive Derelict 6191 | -6/Extension | Rescued a captive Derelict 6192 | -6/Extension | Rescued a captive Derelict 6287 | -6/Extension | Lost 3 allies 6290 | -6/Extension | Rescued a captive Derelict 6593 | -6/Extension | Build established: Commander-Tank 6724 | -6/Extension | Spotted B-75 Beast 6736 | -6/Extension | Spotted B-75 Beast 6768 | -6/Extension | Allies destroyed B-75 Beast 6780 | -6/Extension | Destroyed B-75 Beast 6804 | -6/Extension | Lost 4 allies 6813 | -6/Extension | Rescued a captive Derelict 6813 | -6/Extension | Rescued a captive Derelict 6941 | -6/Extension | Rescued A7 7064 | -6/Extension | Rescued a captive Derelict 7152 | -6/Extension | Rescued a captive Derelict 7205 | -6/Extension | Rescued a captive Derelict 7245 | -6/Extension | Discovered new exit (range 10) 7249 | -6/Extension | Discovered new exit (range 6) 7268 | -6/Extension | Identified exit to Cetus 7297 | -6/Extension | Entered Cetus 7297 | -6/Cetus | Accompanied by 11 allies (A7) 7302 | -6/Cetus | Acquired a Cetus Manufacturing Module code from A7 7308 | -6/Cetus | Spotted Cetus Guard 7310 | -6/Cetus | Spotted Cetus Guard 7323 | -6/Cetus | Spotted Cetus Guard 7324 | -6/Cetus | Spotted Cetus Guard 7332 | -6/Cetus | Allies destroyed Cetus Guard 7347 | -6/Cetus | Destroyed Cetus Guard 7349 | -6/Cetus | Allies destroyed Cetus Guard 7349 | -6/Cetus | Allies destroyed Cetus Guard 7419 | -6/Cetus | Started Cetus Manufacturing Module 7436 | -6/Cetus | Escorted A7 to Cetus Mainframe 7444 | -6/Cetus | Manufactured an Enhanced Grunt 7463 | -6/Cetus | Discovered new exit (range 22) 7469 | -6/Cetus | Manufactured an Enhanced Grunt 7493 | -6/Cetus | Spotted Cetus Guard 7493 | -6/Cetus | Spotted Cetus Guard 7493 | -6/Cetus | Spotted Cetus Guard 7493 | -6/Cetus | Spotted Cetus Guard 7494 | -6/Cetus | Manufactured an Enhanced Grunt 7496 | -6/Cetus | Discovered new exit (range 22) 7499 | -6/Cetus | Allies destroyed Cetus Guard 7509 | -6/Cetus | Allies destroyed Cetus Guard 7516 | -6/Cetus | Allies destroyed Cetus Guard 7519 | -6/Cetus | Manufactured an Enhanced Grunt 7519 | -6/Cetus | Extracted ID and sensor layout for unrecognized location from A7's data core 7520 | -6/Cetus | Destroyed Cetus Guard 7544 | -6/Cetus | Manufactured an Enhanced Grunt 7546 | -6/Cetus | Lost 3 allies 7564 | -6/Cetus | Met Revision 17 7828 | -6/Cetus | Identified exit to Archives 7878 | -6/Cetus | Entered Archives 7878 | -6/Archives | Accompanied by 10 allies 7922 | -6/Archives | Discovered new exit (range 23) 7939 | -6/Archives | Discovered new exit (range 16) 7944 | -6/Archives | Lost 3 allies 8037 | -6/Archives | System corruption reached 10% 8049 | -6/Archives | Discovered new exit (range 17) 8426 | -6/Archives | Entered Hub_04(d) 8426 | -6/Hub_04(d) | Accompanied by 7 allies 8450 | -6/Hub_04(d) | Imp. Hacking Suite fried by hacking feedback 8582 | -6/Hub_04(d) | Network Hub disabled 8617 | -6/Hub_04(d) | Spotted Lightning 8626 | -6/Hub_04(d) | Spotted Lightning 8626 | -6/Hub_04(d) | Spotted Lightning 8633 | -6/Hub_04(d) | Garrison activated, responded to threat 8639 | -6/Hub_04(d) | Destroyed Lightning 8649 | -6/Hub_04(d) | Destroyed Lightning 8655 | -6/Hub_04(d) | Destroyed Lightning 8689 | -6/Hub_04(d) | Network Hub disabled 8703 | -6/Hub_04(d) | Found Prototype Device 8703 | -6/Hub_04(d) | Identified Exp. Thermal Shield 8792 | -6/Hub_04(d) | Build established: Scavenger-Tank 8909 | -6/Hub_04(d) | Discovered new exit (range 12) 8927 | -6/Hub_04(d) | Core integrity fell below 50% 8953 | -6/Hub_04(d) | Entered Factory 8953 | -5/Factory | Evolved 2 slots: Propulsion x1, Utility x1 9037 | -5/Factory | Identified exit to Factory 9253 | -5/Factory | First assault squad dispatched 9359 | -5/Factory | Discovered new exit (range 5) 9549 | -5/Factory | Fabricated Centrium Leg (x1) 9962 | -5/Factory | Entered Upper Caves 9979 | -5/Upper Caves | Learned Factory trap positions 9989 | -5/Upper Caves | Identified exit to Upper Caves 10242 | -5/Upper Caves | Learned Extension trap positions 10242 | -5/Upper Caves | Learned Extension security intel 10736 | -5/Upper Caves | Entered another Upper Caves area 10785 | -5/Upper Caves | Entered a destroyed Warlord outpost 11421 | -5/Upper Caves | Lost 4 parts (1p2u1w) 11554 | -5/Upper Caves | Learned Factory emergency access door positions 11647 | -5/Upper Caves | Discovered new exit (range 13) 11739 | -5/Upper Caves | Encountered a Warlord checkpoint 11892 | -5/Upper Caves | Entered Zhirov 11894 | -5/Zhirov | Discovered new exit (range 3) 11912 | -5/Zhirov | Met Zhirov 11935 | -5/Zhirov | Learned location of Quarantine (-3) 11935 | -5/Zhirov | Learned location of Testing (-2) 11935 | -5/Zhirov | Learned location of Command (-1) 11948 | -5/Zhirov | Zhirov requested help retrieving the SGEMP Prototype 11964 | -5/Zhirov | Found Alien Artifact 11964 | -5/Zhirov | Identified Integrated Reactor 11964 | -5/Zhirov | Installed Integrated Reactor, increased core energy generation (+10) 11979 | -5/Zhirov | Found Alien Artifact 12175 | -5/Zhirov | Entered Proximity Caves 12321 | -4/Proximity Caves | Build established: Gladiator 12773 | -4/Proximity Caves | Attracted the attention of an 0b10 outpost 12781 | -4/Proximity Caves | Core integrity fell below 50% 12922 | -4/Proximity Caves | System corruption reached 10% 13034 | -4/Proximity Caves | Entered Factory 13034 | -4/Factory | Evolved 2 slots: Propulsion x1, Utility x1 13035 | -4/Factory | Loaded intel: 84 trap records 13369 | -4/Factory | Build established: Scavenger-Mutant 13401 | -4/Factory | Identified exit to Upper Caves 13410 | -4/Factory | Discovered new exit (range 21) 13469 | -4/Factory | Repaired Imp. Proton Missile Launcher 13487 | -4/Factory | Identified Transdimensional Reconstructor 13653 | -4/Factory | Found Exp. Targeting Computer 13994 | -4/Factory | Repaired Mic. Antimatter Reactor 14129 | -4/Factory | Repaired Centrium Medium Armor Plating? 14144 | -4/Factory | Discovered new exit (range 14) 14151 | -4/Factory | Identified exit to Research 14154 | -4/Factory | Found Unknown Device 14154 | -4/Factory | Identified Launcher Loader 14284 | -4/Factory | Central database locked down 14302 | -4/Factory | Discovered exit to Research (range 11) 14414 | -4/Factory | Repaired Gravmag Array+? 14812 | -4/Factory | Fabricated Hyp. Railgun (x2) 15006 | -4/Factory | Build established: Scavenger-Scout 15113 | -4/Factory | Learned Quarantine security intel 15174 | -4/Factory | Learned location of 1 exit from Testing 15188 | -4/Factory | Learned Research interactive machine intel 15244 | -4/Factory | Learned location of 1 exit from Armory 15252 | -4/Factory | Repaired Centrium Medium Armor Plating 15290 | -4/Factory | Learned Research emergency access door positions 15332 | -4/Factory | Fabricated Hyp. Railgun (x2) 15447 | -4/Factory | Fabricated M-13 Machinist? 15450 | -4/Factory | Local machine network offline 15534 | -4/Factory | First assault squad dispatched 15701 | -4/Factory | Build established: Scavenger-Ninja 15912 | -4/Factory | Entered Upper Caves 15913 | -4/Upper Caves | Identified exit to Upper Caves 15921 | -4/Upper Caves | Learned Research emergency access door positions 15928 | -4/Upper Caves | Learned 4 Research zone layouts 16116 | -4/Upper Caves | Build established: Scavenger-Scout 16285 | -4/Upper Caves | Attacked by a delusional Derelict stockpiling Unaware 16552 | -4/Upper Caves | Entered another Upper Caves area 16552 | -4/Upper Caves | Accompanied by 2 allies 16579 | -4/Upper Caves | Discovered exit to Research (range 5) 16599 | -4/Upper Caves | Found DCF Scrap (13 items) 16939 | -4/Upper Caves | Attracted the attention of an 0b10 outpost 17033 | -4/Upper Caves | Discovered new exit (range 9) 17039 | -4/Upper Caves | Identified exit to Warlord 17057 | -4/Upper Caves | Entered Warlord 17057 | -4/Warlord | Accompanied by 2 allies 17225 | -4/Warlord | Received a Watcher feed algorithm from an ecstatic Tinkerer 17281 | -4/Warlord | Met Warlord 17291 | -4/Warlord | Warlord's base attacked by MAIN.C 17315 | -4/Warlord | Found Prototype Energy Cannon 17315 | -4/Warlord | Identified Vortex Driver 17318 | -4/Warlord | Found Prototype Energy Gun 17318 | -4/Warlord | Identified Vortex Rail 17327 | -4/Warlord | Found Vortex Driver 17352 | -4/Warlord | Learned Research emergency access door positions 17352 | -4/Warlord | Learned Quarantine emergency access door positions 17352 | -4/Warlord | Learned 4 Quarantine zone layouts 17353 | -4/Warlord | Learned Armory security intel 17353 | -4/Warlord | Learned Armory garrison access intel 17507 | -4/Warlord | Warlord forces counterattacked 17558 | -4/Warlord | Build established: Commander-Scout 17574 | -4/Warlord | Lost 7 allies 17594 | -4/Warlord | Spotted Striker 17594 | -4/Warlord | Spotted Executioner 17606 | -4/Warlord | Spotted B-90 Cyclops 17623 | -4/Warlord | Allies destroyed B-90 Cyclops 17626 | -4/Warlord | Found Prototype Processor 17626 | -4/Warlord | Identified Exp. Core Analyzer 17654 | -4/Warlord | Lost 8 allies 17808 | -4/Warlord | Spotted Executioner 17815 | -4/Warlord | Found Exp. Targeting Computer 17838 | -4/Warlord | Discovered new exit (range 8) 17840 | -4/Warlord | Lost 12 allies 17892 | -4/Warlord | Spotted Striker 17929 | -4/Warlord | Lost 3 allies 17966 | -4/Warlord | Warlord base infiltrated, sounded retreat 18017 | -4/Warlord | Found Prototype Processor 18017 | -4/Warlord | Identified Spectral Analyzer 18023 | -4/Warlord | Found Prototype Reactor 18030 | -4/Warlord | Spotted Striker 18052 | -4/Warlord | Spotted Executioner 18073 | -4/Warlord | Spotted Striker 18106 | -4/Warlord | Found Prototype Device 18106 | -4/Warlord | Identified Exp. Shock Absorption System 18115 | -4/Warlord | P-80 Master assimilated allied W2-N6A(m) 18117 | -4/Warlord | Lost 6 allies 18126 | -4/Warlord | Found Prototype Launcher 18139 | -4/Warlord | Spotted Executioner 18195 | -4/Warlord | Spotted Striker 18195 | -4/Warlord | Spotted Striker 18196 | -4/Warlord | Spotted Striker 18213 | -4/Warlord | Identified exit to Proximity Caves 18216 | -4/Warlord | Entered Proximity Caves 18216 | -3/Proximity Caves | Accompanied by 7 allies 18239 | -3/Proximity Caves | Identified Chain Missile Launcher 18243 | -3/Proximity Caves | Lost 16 allies 18345 | -3/Proximity Caves | Build established: Scavenger-Scout 18393 | -3/Proximity Caves | Attracted the attention of an 0b10 checkpoint 18432 | -3/Proximity Caves | Encountered a Derelict sapper outpost 18527 | -3/Proximity Caves | Discovered exit to Research (range 9) 18578 | -3/Proximity Caves | Entered Research 18578 | -3/Research | Accompanied by 8 allies 18578 | -3/Research | Evolved 2 slots: Utility x2 18579 | -3/Research | Identified exit to Armory 18580 | -3/Research | Identified exit to Research 18582 | -3/Research | Loaded intel: 48 interactive machine locations 18653 | -3/Research | Found Fusion Bomb Launcher 18654 | -3/Research | Found Fusion Bomb Launcher 18733 | -3/Research | Central database locked down 18778 | -3/Research | Revision forces began assault on 0b10 18918 | -3/Research | Fabricated Hyp. Railgun (x2) 18940 | -3/Research | Discovered exit to Research (range 18) 19062 | -3/Research | Met up with Revision 17++ 19087 | -3/Research | Spotted B-86 Titan 19234 | -3/Research | Local machine network offline 19278 | -3/Research | Research terminal network offline 19292 | -3/Research | Lost 3 allies 19299 | -3/Research | Discovered new exit (range 8) 19339 | -3/Research | Spotted B-90 Cyclops 19362 | -3/Research | Discovered new exit (range 23) 19487 | -3/Research | Entered Armory 19487 | -3/Armory | Accompanied by 2 allies 19488 | -3/Armory | Identified exit to Lab 19648 | -3/Armory | Spotted B-86 Titan 19770 | -3/Armory | Unchained authorized (DW-4LL) 19770 | -3/Armory | Warped through subspace to slip node 19774 | -3/Armory | Entered Lab 19774 | -3/Lab | Discovered exit to Research (range 9) 19779 | -3/Lab | Hidden lab's door opened automatically 19779 | -3/Lab | Sensor layout match revealed 19780 | -3/Lab | Gained access to the hidden lab's interior 19920 | -3/Lab | Found Prototype Hackware 19920 | -3/Lab | Identified Quantum Router 19923 | -3/Lab | Found Prototype Protection 19923 | -3/Lab | Identified Exp. Powered Armor 19926 | -3/Lab | Found Prototype Energy Cannon 19926 | -3/Lab | Identified Warp Cannon 19930 | -3/Lab | Found Prototype Energy Cannon 19930 | -3/Lab | Identified Potential Cannon 19943 | -3/Lab | Unable to decrypt terminal 20021 | -3/Lab | Found Alien Artifact 20028 | -3/Lab | Found Alien Artifact 20028 | -3/Lab | Identified Integrated Mediator 20028 | -3/Lab | Installed Integrated Mediator, increased core attachment efficiency 20036 | -3/Lab | Found Alien Artifact 20036 | -3/Lab | Identified Core Regenerator 20036 | -3/Lab | Used Core Regenerator, restored core integrity (+117) 20044 | -3/Lab | Found Transdimensional Reconstructor 20054 | -3/Lab | Identified Core Reset Matrix 20054 | -3/Lab | Used Core Reset Matrix 20057 | -3/Lab | Entered Research 20057 | -2/Research | Warlord forces began assault on 0b10 20057 | -2/Research | Evolved 2 slots: Power x1, Weapon x1 20089 | -2/Research | Discovered new exit (range 13) 20095 | -2/Research | Identified exit to Testing 20167 | -2/Research | Research machine network offline 20253 | -2/Research | Found Unknown Device 20253 | -2/Research | Identified Launcher Loader 20272 | -2/Research | Discovered exit to Testing (range 23) 20300 | -2/Research | Found Prototype Device 20300 | -2/Research | Identified Adv. EM Shield 20312 | -2/Research | Met up with Warlord 20321 | -2/Research | Spotted Striker 20359 | -2/Research | P-80 Master assimilated allied F7-T9J(m) 20382 | -2/Research | Lost 6 allies 20403 | -2/Research | Discovered new exit (range 3) 20404 | -2/Research | Identified exit to Access 20521 | -2/Research | Met DD-05H 20716 | -2/Research | Borebot progress halted 20722 | -2/Research | Found Prototype Device 20722 | -2/Research | Identified Adv. Kinecellerator 20753 | -2/Research | Spotted Executioner 20756 | -2/Research | Spotted Executioner 20757 | -2/Research | Destroyed Executioner 20763 | -2/Research | Spotted Striker 20822 | -2/Research | Lost 8 allies 20896 | -2/Research | Borebot progress halted 20946 | -2/Research | Borebot progress halted 21064 | -2/Research | Spotted Executioner 21132 | -2/Research | Spotted Striker 21132 | -2/Research | Spotted Executioner 21135 | -2/Research | Destroyed Executioner 21195 | -2/Research | Spotted Striker 21207 | -2/Research | Spotted Striker 21207 | -2/Research | Spotted Striker 21238 | -2/Research | Spotted Striker 21305 | -2/Research | Entered Testing 21398 | -2/Testing | Found Prototype Ballistic Cannon 21398 | -2/Testing | Identified Perforator 21428 | -2/Testing | Found Prototype Hackware 21428 | -2/Testing | Identified System Mapper 21530 | -2/Testing | Found Prototype Launcher 21530 | -2/Testing | Identified Z-bomb Delivery System 21765 | -2/Testing | Repaired Broken Mni. Fusion Reactor? 21806 | -2/Testing | Found Prototype Device 21806 | -2/Testing | Identified 2N-1CE's Frost Array 21885 | -2/Testing | Found Prototype Device 21885 | -2/Testing | Identified Exp. Shield Generator 21977 | -2/Testing | Spotted Striker 21978 | -2/Testing | Spotted Striker 22007 | -2/Testing | Destroyed Striker 22025 | -2/Testing | Destroyed Striker 22051 | -2/Testing | Spotted Alpha 7 22055 | -2/Testing | First assault squad dispatched 22113 | -2/Testing | Destroyed Alpha 7 22122 | -2/Testing | Found Prototype Processor 22122 | -2/Testing | Identified Exp. Target Analyzer 22154 | -2/Testing | Stole the SGEMP Prototype 22252 | -2/Testing | Entered Access 22252 | -1/Access | Evolved 2 slots: Propulsion x1, Utility x1 22253 | -1/Access | Attacked by Zhirov 22285 | -1/Access | Destroyed Perun 22295 | -1/Access | Destroyed Svarog 22302 | -1/Access | Lost 6 allies 22318 | -1/Access | Found Zhirov Special 22382 | -1/Access | Garrison activated, responded to threat 22502 | -1/Access | First assault squad dispatched 22537 | -1/Access | System corruption reached 10% 22642 | -1/Access | Discovered new exit (range 7) 22643 | -1/Access | Identified exit to Command 22668 | -1/Access | Identified Vortex Chain Reactor 22772 | -1/Access | Entered Command 22910 | -1/Command | Spotted B-99 Colossus 23081 | -1/Command | Found Unknown Protection 23081 | -1/Command | Identified Adv. Powered Armor 23103 | -1/Command | Hacking Suite fried by hacking feedback 23121 | -1/Command | Spotted M Guard 23121 | -1/Command | Spotted M Guard 23121 | -1/Command | Spotted Combat Programmer 23121 | -1/Command | Spotted Combat Programmer 23178 | -1/Command | Destroyed Combat Programmer 23200 | -1/Command | Destroyed M Guard 23202 | -1/Command | Destroyed Combat Programmer 23230 | -1/Command | Lost 6 parts (3n3u) 23395 | -1/Command | Destroyed M Guard 23395 | -1/Command | All MAIN.C guards destroyed 23410 | -1/Command | Build established: Scavenger-Gunner 23418 | -1/Command | Found Prototype Protection 23418 | -1/Command | Identified Hvy. Regenerative Plating 23428 | -1/Command | Found Prototype Launcher 23430 | -1/Command | Found Prototype Reactor 23432 | -1/Command | Found Prototype Reactor 23460 | -1/Command | Met MAIN.C 23473 | -1/Command | Identified Hellfire Missile Launcher 23533 | -1/Command | Lost 9 parts (2p2n2u3w) 23591 | -1/Command | 0b10 Conduit disabled 23594 | -1/Command | Identified Zero-point Reactor (x2) 23612 | -1/Command | Core integrity fell below 50% 23634 | -1/Command | Emitted hypermatrix ping 23639 | -1/Command | Assembled emerged from beneath the floor 23661 | -1/Command | Core integrity fell below 20% 23663 | -1/Command | MAIN.C activated Command garrisons 23673 | -1/Command | Lost 14 parts (2p5n4u3w) 23739 | -1/Command | Failed to warp due to unstable space 23750 | -1/Command | Lost 7 allies 23760 | -1/Command | Destroyed by G-73 Enforcer with Phase Gun Last Messages --------------- 23666_ as-40550 destroyed. 23669_ The unstable cave ceiling collapses. 23669_ as-55673 crushed by MAIN.C. 23669_ as-55673 destroyed. 23671_ System corrupted: Component data lost. 23672_ The unstable cave ceiling collapses. 23691_ as-03624 crushed by MAIN.C. 23691_ as-03624 destroyed. 23700_ MAIN.C suffers critical hit (Destroy). 23713_ S-43 Plague destroyed. 23717_ as-40934 destroyed. 23723_ B:EP,NIIVAYW1X#RBHHQ1OVYKD : 23724_ The unstable cave ceiling collapses. 23739_ Warp failed due to unstable space. 23744_ JL9M61TTBJ|FLKTGGEJF4&Y%Z:86DHY=X 23753_ The unstable cave ceiling collapses. 23757_ R-10 Processor collects Unknown Flight Unit. 23758_ Exp. Matter Compressor destroyed. 23760_ D0 K5GK